Workbook

Sheet 初期条件
A1: 初期条件
A3: 樹種
A4: 開始林齢 | B4: 20
A5: 収穫林齢 | B5: 100
A6: ha当たり本数 | B6: 2000
A8: 地位指数
C9: 100 | D9: 年生時上層木樹高 | E9: 24 | F9: ｍ
A10: 100年生時樹高 | B10: =実測樹高/(スギPB1*(1-EXP(実測林齢*スギPB2))^スギPB3) -> 23.91323392 | D10: 地位 | E10: =スギ地位級 -> Ⅲ | F10: 相当
A12: 新・システム収穫表
A13: ～静岡県スギ・ヒノキ人工林収穫予測表～
F14: Version 3.0.8
F15: 静岡県農林技術研究所森林・林業研究センター
A100: 上層木平均樹高・パラメータ | E100: 開始林齢 | F100: 収穫林齢
B101: スギ | C101: ヒノキ | E101: 15 | F101: 40
A102: PB1 | B102: 1.679877 | C102: 1.877172 | E102: 20 | F102: 45
A103: PB2 | B103: -0.005954 | C103: -0.004955 | E103: 25 | F103: 50
A104: PB3 | B104: 0.642673 | C104: 0.671687 | E104: 30 | F104: 55
E105: 35 | F105: 60
A106: 地位指数変換テーブル | E106: 40 | F106: 65
B107: スギ | C107: ヒノキ | E107: 45 | F107: 70
A108: Ⅰ | B108: 32 | C108: 28 | E108: 50 | F108: 75
A109: Ⅱ | B109: 28 | C109: 24 | E109: 55 | F109: 80
A110: Ⅲ | B110: 24 | C110: 20 | E110: 60 | F110: 85
A111: Ⅳ | B111: 20 | C111: 16 | E111: 65 | F111: 90
A112: Ⅴ | B112: 16 | C112: 12 | E112: 70 | F112: 95
E113: 75 | F113: 100
A114: 地位級表示式 | B114: =IF(地位指数>(スギ地位1+スギ地位2)/2,"Ⅰ",IF(地位指数>(スギ地位2+スギ地位3)/2,"Ⅱ",IF(地位指数>(スギ地位3+スギ地位4)/2,"Ⅲ",IF(地位指数>(スギ地位4+スギ地位5)/2,"Ⅳ","Ⅴ")))) -> Ⅲ | C114: =IF(地位指数>(ヒノキ地位1+ヒノキ地位2)/2,"Ⅰ",IF(地位指数>(ヒノキ地位2+ヒノキ地位3)/2,"Ⅱ",IF(地位指数>(ヒノキ地位3+ヒノキ地位4)/2,"Ⅲ",IF(地位指数>(ヒノキ地位4+ヒノキ地位5)/2,"Ⅳ","Ⅴ")))) -> Ⅱ | E114: 80 | F114: 105
E115: 85 | F115: 110
E116: 90 | F116: 115
E117: 95 | F117: 120
E118: 100 | F118: 125
F119: 130
F120: 135
F121: 140
F122: 145
F123: 150
F124: 155
F125: 160
F126: 165
F127: 170
F128: 175
F129: 180
F130: 185
F131: 190
F132: 195
F133: 200

Sheet 予測結果
A1: 予測結果
F2: weibullパラメータ
A3: 林齢 | B3: 上層木樹高 | C3: 平均樹高 | D3: 断面積平均木直径 | E3: 平均直径 | F3: a | G3: b | H3: c | I3: ha本数 | J3: ha胸高断面積 | K3: 間伐 | L3: 間伐方法 | M3: 本数間伐率％ | N3: 断面積平均木直径 | O3: 平均直径 | P3: ha本数 | Q3: ha胸高断面積 | S3: ha林分材積 | T3: ha間伐材積 | U3: ha残存材積
A4: 15
A5: 20 | B5: 9.852106099 | C5: 9.743346352 | D5: 13.37000767 | E5: 13.21251036 | F5: 5.920268219 | G5: 8.045543364 | H5: 3.999884717 | I5: =初期本数 -> 2000 | J5: =KyokoDanmenseki($F5,$G5,$H5,$I5) -> 27.82665693 | K5: しない | P5: =I5 -> 2000 | S5: =Zaiseki($F5,$G5,$H5,$I5,$A5,$E5,$C5) -> 146.1055698 | U5: =S5-T5 -> 146.1055698
A6: 25 | B6: 11.26545453 | C6: 11.15377763 | D6: 15.49343718 | E6: 15.33686781 | F6: 7.142196429 | G6: 9.015044231 | H6: 4.205965029 | I6: =haHonsu($D6,$P5) -> 1941 | J6: 36.16350135 | K6: しない | P6: 1941 | S6: 213.0184706 | U6: 213.0184706
A7: 30 | B7: 12.54859631 | C7: 12.43427101 | D7: 17.55609628 | E7: 17.40042829 | F7: 8.37391727 | G7: 9.906678526 | H7: 4.379389351 | I7: 1651 | J7: 39.86712493 | K7: しない | P7: 1651 | S7: 256.2998097 | U7: 256.2998097
A8: 35 | B8: 13.72775133 | C8: 13.61099225 | D8: 19.55972415 | E8: 19.40493175 | F8: 9.608931154 | G8: 10.73055468 | H8: 4.528457538 | I8: 1435 | J8: 42.92420874 | K8: しない | P8: 1435 | S8: 297.0651361 | U8: 297.0651361
A9: 40 | B9: 14.82071621 | C9: 14.70170126 | D9: 21.50601022 | E9: 21.35206835 | F9: 10.8422061 | G9: 11.49359056 | H9: 4.65710742 | I9: 1269 | J9: 45.81164655 | K9: しない | P9: 1269 | S9: 337.5446 | U9: 337.5446
A10: 45 | B10: 15.84032257 | C10: 15.71920314 | D10: 23.39659554 | E10: 23.24347986 | F10: 12.06977323 | G10: 12.20282654 | H10: 4.76908251 | I10: 1138 | J10: 48.48577022 | K10: しない | P10: 1138 | S10: 377.1754839 | U10: 377.1754839
A11: 50 | B11: 16.79624299 | C11: 16.67315054 | D11: 25.23307422 | E11: 25.08076107 | F11: 13.28846149 | G11: 12.86334989 | H11: 4.867211843 | I11: 1032 | J11: 51.37163723 | K11: しない | P11: 1032 | S11: 418.7389251 | U11: 418.7389251
A12: 55 | B12: 17.69602228 | C12: 17.57107269 | D12: 27.01699473 | E12: 26.86546116 | F12: 14.49571535 | G12: 13.47933735 | H12: 4.953688524 | I12: 945 | J12: 53.81014145 | K12: しない | P12: 945 | S12: 457.7551123 | U12: 457.7551123
A13: 60 | B13: 18.54570698 | C13: 18.41900364 | D13: 28.74986123 | E13: 28.59908492 | F13: 15.68946466 | G13: 14.05518146 | H13: 5.03024855 | I13: 872 | J13: 56.13711913 | K13: しない | P13: 872 | S13: 496.7381678 | U13: 496.7381678
A14: 65 | B14: 19.35025056 | C14: 19.22188664 | D14: 30.43313484 | E14: 30.28309412 | F14: 16.86802877 | G14: 14.59452483 | H14: 5.098290243 | I14: 810 | J14: 58.60892423 | K14: しない | P14: 810 | S14: 537.2631942 | U14: 537.2631942
A15: 70 | B15: 20.11378538 | C15: 19.98384553 | D15: 32.06823486 | E15: 31.91890868 | F15: 18.03004423 | G15: 15.09974516 | H15: 5.159702935 | I15: 757 | J15: 60.61703025 | K15: しない | P15: 757 | S15: 574.0674496 | U15: 574.0674496
A16: 75 | B16: 20.83981186 | C16: 20.70837349 | D16: 33.65653997 | E16: 33.50790787 | F16: 19.1744089 | G16: 15.57372894 | H16: 5.214444004 | I16: 711 | J16: 62.79446812 | K16: しない | P16: 711 | S16: 612.3965468 | U16: 612.3965468
A17: 80 | B17: 21.53133383 | C17: 21.39846816 | D17: 35.19938938 | E17: 35.05143151 | F17: 20.30023808 | G17: 16.01896218 | H17: 5.26304422 | I17: 671 | J17: 64.43406533 | K17: しない | P17: 671 | S17: 644.874588 | U17: 644.874588
A18: 85 | B18: 22.19095797 | C18: 22.05673083 | D18: 36.698084 | E18: 36.55078106 | F18: 21.40682948 | G18: 16.4375308 | H18: 5.306760896 | I18: 635 | J18: 66.60741912 | K18: しない | P18: 635 | S18: 680.7367281 | U18: 680.7367281
A19: 90 | B19: 22.82096833 | C19: 22.68544085 | D19: 38.15388749 | E19: 38.00722074 | F19: 22.4936349 | G19: 16.83134239 | H19: 5.346491705 | I19: 604 | J19: 68.31298977 | K19: しない | P19: 604 | S19: 710.0014562 | U19: 710.0014562
A20: 95 | B20: 23.42338332 | C20: 23.28661245 | D20: 39.56802735 | E20: 39.42197858 | F20: 23.560237 | G20: 17.20226222 | H20: 5.382264346 | I20: 576 | J20: 69.90703389 | K20: しない | P20: 576 | S20: 736.085475 | U20: 736.085475
A21: 100 | B21: 24 | C21: 23.862039 | D21: 40.94169596 | E21: 40.79624748 | F21: 24.60633008 | G21: 17.55217621 | H21: 5.414325579 | I21: 552 | J21: 71.94247177 | K21: しない | P21: 552 | S21: 765.1427721 | U21: 765.1427721
A22: 105
A23: 110
A24: 115
A25: 120
A26: 125
A27: 130
A28: 135
A29: 140
A30: 145
A31: 150
A32: 155
A33: 160
A34: 165
A35: 170
A36: 175
A37: 180
A38: 185
A39: 190
A40: 195
A41: 200
A100: しない
A101: する

Sheet 間伐
A1: 間伐の実施 | F1: 林齢 | G1: 20 | H1: 年
F2: ワイブル分布パラメータ
A3: 間伐方法 | F3: a | G3: b | H3: c
F4: 最小直径 | G4: 尺度 | H4: 歪度
F5: 5.920268219 | G5: 8.045543364 | H5: 3.999884717
A7: 間伐率 | B7: （標準的な本数減少過程に相当する断面積 | F7: =(B162*E153^B163)/C151*E151 -> 32.96664694 | G7: m2/ha）
F8: =F7*0.8 -> 26.37331755 | G8: m2/ha
F9: =F7*0.7 -> 23.07665286 | G9: m2/ha
F10: =F7*0.6 -> 19.77998816 | G10: m2/ha
E11: 758 | F11: =E11/1000*E151 -> 21.22215015 | G11: m2/ha
A13: 間伐前 | E13: 間伐後
A14: 平均胸高直径 | B14: =D151 -> 13.20741483 | C14: cm | E14: 平均胸高直径 | F14: =間伐後直径 -> 12.79001135 | G14: cm
A15: 平均樹高 | B15: 9.743346352 | C15: m | E15: 平均樹高 | F15: =間伐後樹高 -> 9.543779711 | G15: m
A16: 胸高断面積 | B16: =間伐前断面積 -> 27.99755957 | C16: m2/ha | E16: 胸高断面積 | F16: =間伐後断面積 -> 23.0737414 | G16: m2/ha
A17: 立木密度 | B17: =間伐前本数 -> 1996 | C17: 本/ha | E17: 立木密度 | F17: =間伐後本数 -> 1762 | G17: 本/ha
A19: 間伐前材積 | B19: =間伐前材積 -> 146.8348514 | C19: m3/ha | E19: 断面積間伐率 | F19: =断面積間伐率*100 -> 17.5865977 | G19: ％
A20: 間伐材積 | B20: =間伐木材積 -> 27.91123419 | C20: m3/ha | E20: 材積間伐率 | F20: =間伐木材積/間伐前材積*100 -> 19.00858953 | G20: ％
A21: 間伐後材積 | B21: =間伐後材積 -> 118.9236172 | C21: m3/ha | E21: 本数間伐率 | F21: =本数間伐率*100 -> 11.72344689 | G21: ％
A98: ha総本数 | B98: 2000
C99: 間伐前 | H99: 間伐後 | M99: 間伐木 | P99: 直径階別
A100: 直径階d | B100: f(d) | C100: ha本数 | D100: 直径計 | E100: 断面積計 | F100: 材積計 | G100: 間伐率 | H100: ha本数 | I100: 直径計 | J100: 断面積計 | K100: 樹高計 | L100: 材積計 | M100: ha本数 | N100: 材積計 | P100: 樹高 | Q100: 単木材積
A101: 2 | B101: =IF(A101<F$5,0,((2*H$5/G$5)*(((A101-F$5)/G$5)^(H$5-1))*EXP(0-((A101-F$5)/G$5)^H$5))) -> 0 | C101: =INT(B101*$B$98) -> 0 | D101: =$A101*C101 -> 0 | E101: =C101*($A101^2*PI()/40000) -> 0 | F101: =C101*Q101 -> 0 | G101: 1 | H101: =INT(C101*G101) -> 0 | I101: =$A101*H101 -> 0 | J101: =H101*($A101^2*PI()/40000) -> 0 | K101: =P101*H101 -> 0 | L101: =H101*Q101 -> 0 | M101: =C101-H101 -> 0 | N101: =M101*Q101 -> 0 | P101: =ChokkeikaiJukou(A101,$D$151,$B$15,$G$1) -> 3.336176438 | Q101: =TanbokuZaiseki(A101,P101) -> 0.0007942752247
A102: 4 | B102: 0 | C102: =INT(B102*B$98) -> 0 | D102: =A102*C102 -> 0 | E102: =C102*(A102^2*PI()/40000) -> 0 | F102: 0 | G102: 1 | H102: 0 | I102: 0 | J102: 0 | K102: 0 | L102: 0 | M102: 0 | N102: 0 | P102: 4.945017373 | Q102: 0.004035060834
A103: 6 | B103: 9.682362983e-07 | C103: 0 | D103: 0 | E103: 0 | F103: 0 | G103: 1 | H103: 0 | I103: 0 | J103: 0 | K103: 0 | L103: 0 | M103: 0 | N103: 0 | P103: 6.225137045 | Q103: 0.01044149953
A104: 8 | B104: 0.01710040137 | C104: 34 | D104: 272 | E104: 0.1709026404 | F104: 0.6969603541 | G104: 1 | H104: 34 | I104: 272 | J104: 0.1709026404 | K104: 249.2100485 | L104: 0.6969603541 | M104: 0 | N104: 0 | P104: 7.329707308 | Q104: 0.02049883394
A105: 10 | B105: 0.1213581177 | C105: 242 | D105: 2420 | E105: 1.900663555 | F105: 8.371182841 | G105: 1 | H105: 242 | I105: 2420 | J105: 1.900663555 | K105: 2013.379145 | L105: 8.371182841 | M105: 0 | N105: 0 | P105: 8.319748533 | Q105: 0.03459166463
A106: 12 | B106: 0.309675272 | C106: 619 | D106: 7428 | E106: 7.000725069 | F106: 34.77525127 | G106: 1 | H106: 619 | I106: 7428 | J106: 7.000725069 | K106: 5711.607783 | L106: 34.77525127 | M106: 0 | N106: 0 | P106: 9.227153122 | Q106: 0.05617972741
A107: 14 | B107: 0.3641859793 | C107: 728 | D107: 10192 | E107: 11.20668931 | F107: 59.40692268 | G107: 1 | H107: 728 | I107: 10192 | J107: 11.20668931 | K107: 7331.792329 | L107: 59.40692268 | M107: 0 | N107: 0 | P107: 10.07114331 | Q107: 0.08160291577
A108: 16 | B108: 0.1664490005 | C108: 332 | D108: 5312 | E108: 6.67525607 | F108: 37.43550814 | G108: 0.4191108551 | H108: 139 | I108: 2224 | J108: 2.794760825 | K108: 1510.150545 | L108: 15.67330009 | M108: 193 | N108: 21.76220804 | P108: 10.86439241 | Q108: 0.1127575546
A109: 18 | B109: 0.02090083347 | C109: 41 | D109: 738 | E109: 1.04332292 | F109: 6.149026149 | G109: 0 | H109: 0 | I109: 0 | J109: 0 | K109: 0 | L109: 0 | M109: 41 | N109: 6.149026149 | P109: 11.6157919 | Q109: 0.1499762475
A110: 20 | B110: 0.0004504336944 | C110: 0 | D110: 0 | E110: 0 | F110: 0 | G110: 1 | H110: 0 | I110: 0 | J110: 0 | K110: 0 | L110: 0 | M110: 0 | N110: 0 | P110: 12.33187207 | Q110: 0.1935682339
A111: 22 | B111: 9.356043449e-07 | C111: 0 | D111: 0 | E111: 0 | F111: 0 | G111: 1 | H111: 0 | I111: 0 | J111: 0 | K111: 0 | L111: 0 | M111: 0 | N111: 0 | P111: 13.01760081 | Q111: 0.2438233966
A112: 24 | B112: 9.522627857e-11 | C112: 0 | D112: 0 | E112: 0 | F112: 0 | G112: 1 | H112: 0 | I112: 0 | J112: 0 | K112: 0 | L112: 0 | M112: 0 | N112: 0 | P112: 13.67686432 | Q112: 0.3010152542
A113: 26 | B113: 2.193174374e-16 | C113: 0 | D113: 0 | E113: 0 | F113: 0 | G113: 1 | H113: 0 | I113: 0 | J113: 0 | K113: 0 | L113: 0 | M113: 0 | N113: 0 | P113: 14.31277247 | Q113: 0.3654032628
A114: 28 | B114: 4.802660263e-24 | C114: 0 | D114: 0 | E114: 0 | F114: 0 | G114: 1 | H114: 0 | I114: 0 | J114: 0 | K114: 0 | L114: 0 | M114: 0 | N114: 0 | P114: 14.92786115 | Q114: 0.4372346319
A115: 30 | B115: 3.826842862e-34 | C115: 0 | D115: 0 | E115: 0 | F115: 0 | G115: 1 | H115: 0 | I115: 0 | J115: 0 | K115: 0 | L115: 0 | M115: 0 | N115: 0 | P115: 15.52423134 | Q115: 0.5167457854
A116: 32 | B116: 3.86971806e-47 | C116: 0 | D116: 0 | E116: 0 | F116: 0 | G116: 1 | H116: 0 | I116: 0 | J116: 0 | K116: 0 | L116: 0 | M116: 0 | N116: 0 | P116: 16.10364746 | Q116: 0.6229153755
A117: 34 | B117: 1.578921892e-63 | C117: 0 | D117: 0 | E117: 0 | F117: 0 | G117: 1 | H117: 0 | I117: 0 | J117: 0 | K117: 0 | L117: 0 | M117: 0 | N117: 0 | P117: 16.66760882 | Q117: 0.7227595709
A118: 36 | B118: 7.536773672e-84 | C118: 0 | D118: 0 | E118: 0 | F118: 0 | G118: 1 | H118: 0 | I118: 0 | J118: 0 | K118: 0 | L118: 0 | M118: 0 | N118: 0 | P118: 17.21740255 | Q118: 0.8315094028
A119: 38 | B119: 1.112920982e-108 | C119: 0 | D119: 0 | E119: 0 | F119: 0 | G119: 1 | H119: 0 | I119: 0 | J119: 0 | K119: 0 | L119: 0 | M119: 0 | N119: 0 | P119: 17.75414368 | Q119: 0.9493981461
A120: 40 | B120: 1.226216849e-138 | C120: 0 | D120: 0 | E120: 0 | F120: 0 | G120: 1 | H120: 0 | I120: 0 | J120: 0 | K120: 0 | L120: 0 | M120: 0 | N120: 0 | P120: 18.27880592 | Q120: 1.076652074
A121: 42 | B121: 2.217990254e-174 | C121: 0 | D121: 0 | E121: 0 | F121: 0 | G121: 1 | H121: 0 | I121: 0 | J121: 0 | K121: 0 | L121: 0 | M121: 0 | N121: 0 | P121: 18.7922457 | Q121: 1.111923704
A122: 44 | B122: 1.321989742e-216 | C122: 0 | D122: 0 | E122: 0 | F122: 0 | G122: 1 | H122: 0 | I122: 0 | J122: 0 | K122: 0 | L122: 0 | M122: 0 | N122: 0 | P122: 19.29522115 | Q122: 1.232359139
A123: 46 | B123: 4.754448961e-266 | C123: 0 | D123: 0 | E123: 0 | F123: 0 | G123: 1 | H123: 0 | I123: 0 | J123: 0 | K123: 0 | L123: 0 | M123: 0 | N123: 0 | P123: 19.78840733 | Q123: 1.35960869
A124: 48 | B124: 0 | C124: 0 | D124: 0 | E124: 0 | F124: 0 | G124: 1 | H124: 0 | I124: 0 | J124: 0 | K124: 0 | L124: 0 | M124: 0 | N124: 0 | P124: 20.27240853 | Q124: 1.493736473
A125: 50 | B125: 0 | C125: 0 | D125: 0 | E125: 0 | F125: 0 | G125: 1 | H125: 0 | I125: 0 | J125: 0 | K125: 0 | L125: 0 | M125: 0 | N125: 0 | P125: 20.74776828 | Q125: 1.63480444
A126: 52 | B126: 0 | C126: 0 | D126: 0 | E126: 0 | F126: 0 | G126: 1 | H126: 0 | I126: 0 | J126: 0 | K126: 0 | L126: 0 | M126: 0 | N126: 0 | P126: 21.21497763 | Q126: 1.782872539
A127: 54 | B127: 0 | C127: 0 | D127: 0 | E127: 0 | F127: 0 | G127: 1 | H127: 0 | I127: 0 | J127: 0 | K127: 0 | L127: 0 | M127: 0 | N127: 0 | P127: 21.67448209 | Q127: 1.937998848
A128: 56 | B128: 0 | C128: 0 | D128: 0 | E128: 0 | F128: 0 | G128: 1 | H128: 0 | I128: 0 | J128: 0 | K128: 0 | L128: 0 | M128: 0 | N128: 0 | P128: 22.12668727 | Q128: 2.100239712
A129: 58 | B129: 0 | C129: 0 | D129: 0 | E129: 0 | F129: 0 | G129: 1 | H129: 0 | I129: 0 | J129: 0 | K129: 0 | L129: 0 | M129: 0 | N129: 0 | P129: 22.57196385 | Q129: 2.269649849
A130: 60 | B130: 0 | C130: 0 | D130: 0 | E130: 0 | F130: 0 | G130: 1 | H130: 0 | I130: 0 | J130: 0 | K130: 0 | L130: 0 | M130: 0 | N130: 0 | P130: 23.01065159 | Q130: 2.446282455
A131: 62 | B131: 0 | C131: 0 | D131: 0 | E131: 0 | F131: 0 | G131: 1 | H131: 0 | I131: 0 | J131: 0 | K131: 0 | L131: 0 | M131: 0 | N131: 0 | P131: 23.44306292 | Q131: 2.630189296
A132: 64 | B132: 0 | C132: 0 | D132: 0 | E132: 0 | F132: 0 | G132: 1 | H132: 0 | I132: 0 | J132: 0 | K132: 0 | L132: 0 | M132: 0 | N132: 0 | P132: 23.86948591 | Q132: 2.821420795
A133: 66 | B133: 0 | C133: 0 | D133: 0 | E133: 0 | F133: 0 | G133: 1 | H133: 0 | I133: 0 | J133: 0 | K133: 0 | L133: 0 | M133: 0 | N133: 0 | P133: 24.29018685 | Q133: 3.020026105
A134: 68 | B134: 0 | C134: 0 | D134: 0 | E134: 0 | F134: 0 | G134: 1 | H134: 0 | I134: 0 | J134: 0 | K134: 0 | L134: 0 | M134: 0 | N134: 0 | P134: 24.70541254 | Q134: 3.226053181
A135: 70 | B135: 0 | C135: 0 | D135: 0 | E135: 0 | F135: 0 | G135: 1 | H135: 0 | I135: 0 | J135: 0 | K135: 0 | L135: 0 | M135: 0 | N135: 0 | P135: 25.11539223 | Q135: 3.439548844
A136: 72 | B136: 0 | C136: 0 | D136: 0 | E136: 0 | F136: 0 | G136: 1 | H136: 0 | I136: 0 | J136: 0 | K136: 0 | L136: 0 | M136: 0 | N136: 0 | P136: 25.52033933 | Q136: 3.660558841
A137: 74 | B137: 0 | C137: 0 | D137: 0 | E137: 0 | F137: 0 | G137: 1 | H137: 0 | I137: 0 | J137: 0 | K137: 0 | L137: 0 | M137: 0 | N137: 0 | P137: 25.9204529 | Q137: 3.889127896
A138: 76 | B138: 0 | C138: 0 | D138: 0 | E138: 0 | F138: 0 | G138: 1 | H138: 0 | I138: 0 | J138: 0 | K138: 0 | L138: 0 | M138: 0 | N138: 0 | P138: 26.31591902 | Q138: 4.125299765
A139: 78 | B139: 0 | C139: 0 | D139: 0 | E139: 0 | F139: 0 | G139: 1 | H139: 0 | I139: 0 | J139: 0 | K139: 0 | L139: 0 | M139: 0 | N139: 0 | P139: 26.70691187 | Q139: 4.369117279
A140: 80 | B140: 0 | C140: 0 | D140: 0 | E140: 0 | F140: 0 | G140: 1 | H140: 0 | I140: 0 | J140: 0 | K140: 0 | L140: 0 | M140: 0 | N140: 0 | P140: 27.09359488 | Q140: 4.620622388
A141: 82 | B141: 0 | C141: 0 | D141: 0 | E141: 0 | F141: 0 | G141: 1 | H141: 0 | I141: 0 | J141: 0 | K141: 0 | L141: 0 | M141: 0 | N141: 0 | P141: 27.47612155 | Q141: 4.879856202
A142: 84 | B142: 0 | C142: 0 | D142: 0 | E142: 0 | F142: 0 | G142: 1 | H142: 0 | I142: 0 | J142: 0 | K142: 0 | L142: 0 | M142: 0 | N142: 0 | P142: 27.85463634 | Q142: 5.146859026
A143: 86 | B143: 0 | C143: 0 | D143: 0 | E143: 0 | F143: 0 | G143: 1 | H143: 0 | I143: 0 | J143: 0 | K143: 0 | L143: 0 | M143: 0 | N143: 0 | P143: 28.22927539 | Q143: 5.421670397
A144: 88 | B144: 0 | C144: 0 | D144: 0 | E144: 0 | F144: 0 | G144: 1 | H144: 0 | I144: 0 | J144: 0 | K144: 0 | L144: 0 | M144: 0 | N144: 0 | P144: 28.60016716 | Q144: 5.704329117
A145: 90 | B145: 0 | C145: 0 | D145: 0 | E145: 0 | F145: 0 | G145: 1 | H145: 0 | I145: 0 | J145: 0 | K145: 0 | L145: 0 | M145: 0 | N145: 0 | P145: 28.96743304 | Q145: 5.994873279
A146: 92 | B146: 0 | C146: 0 | D146: 0 | E146: 0 | F146: 0 | G146: 1 | H146: 0 | I146: 0 | J146: 0 | K146: 0 | L146: 0 | M146: 0 | N146: 0 | P146: 29.33118792 | Q146: 6.293340301
A147: 94 | B147: 0 | C147: 0 | D147: 0 | E147: 0 | F147: 0 | G147: 1 | H147: 0 | I147: 0 | J147: 0 | K147: 0 | L147: 0 | M147: 0 | N147: 0 | P147: 29.69154061 | Q147: 6.59976695
A148: 96 | B148: 0 | C148: 0 | D148: 0 | E148: 0 | F148: 0 | G148: 1 | H148: 0 | I148: 0 | J148: 0 | K148: 0 | L148: 0 | M148: 0 | N148: 0 | P148: 30.04859433 | Q148: 6.914189366
A149: 98 | B149: 0 | C149: 0 | D149: 0 | E149: 0 | F149: 0 | G149: 1 | H149: 0 | I149: 0 | J149: 0 | K149: 0 | L149: 0 | M149: 0 | N149: 0 | P149: 30.40244707 | Q149: 7.236643087
A150: 100 | B150: 0 | C150: 0 | D150: 0 | E150: 0 | F150: 0 | G150: 1 | H150: 0 | I150: 0 | J150: 0 | K150: 0 | L150: 0 | M150: 0 | N150: 0 | P150: 30.75319201 | Q150: 7.567163073
B151: =SUM(B101:B150) -> 1.000121942 | C151: =SUM(C101:C150) -> 1996 | D151: =SUM(D101:D150)/C151 -> 13.20741483 | E151: =SUM(E101:E150) -> 27.99755957 | F151: =SUM(F101:F150) -> 146.8348514 | G151: 1 | H151: =SUM(H101:H150) -> 1762 | I151: =SUM(I101:I150)/H151 -> 12.79001135 | J151: =SUM(J101:J150) -> 23.0737414 | K151: =SUM(K101:K150)/H151 -> 9.543779711 | L151: =SUM(L101:L150) -> 118.9236172 | M151: =SUM(M101:M150) -> 234 | N151: =SUM(N101:N150) -> 27.91123419
D153: 断面積平均木直径 | E153: =SQRT(E151/C151/PI())*200 -> 13.36395115 | I153: 断面積平均木直径 | J153: =SQRT(J151/H151/PI())*200 -> 12.91252329
G155: 本数率 | H155: =1-(H151/C151) -> 0.1172344689 | I155: 断面積率 | J155: =1-(J151/E151) -> 0.175865977
A160: 標準的本数減少曲線パラメータ
B161: スギ | C161: ヒノキ
A162: A1 | B162: 67444.12 | C162: 37728.5
A163: A2 | B163: -1.294772 | C163: -1.0973864
A164: 直径階別樹高パラメータ
B165: スギ | C165: ヒノキ
A166: J1 | B166: 0.53474 | C166: 0.48821
A167: J2 | B167: 0.001652 | C167: 0.00251

Sheet 丸太材積
A1: 丸太材積 | C1: 林齢 | D1: 150 | E1: 年 | G1: 主伐
A2: 採材方法
A3: 末口径 | B3: 8 | C3: cm以上なら | D3: 4 | E3: ｍで採材
A4: ただし、追加条件として
A5: 末口径 | B5: 16 | C5: cm以上 | D5: 24 | E5: cm未満なら | F5: 6 | G5: ｍで採材
A6: 末口径 | B6: 6 | C6: cm以上なら | D6: 3 | E6: ｍで採材
D8: 立木材積 | E8: =E151 -> 1304.501743 | F8: m3/ha
D9: 丸太材積 | E9: =SUM(C14:C69,E14:E69,G14:G69) -> 1296.667405 | F9: m3/ha
D10: 歩留まり率 | E10: =E9/E8*100 -> 99.39943829 | F10: ％
A11: 採材結果
B12: =D3 -> 4 | C12: m材 | D12: =F5 -> 6 | E12: m材 | F12: =D6 -> 3 | G12: m材
A13: 直径階 | B13: 本数 | C13: 材積 | D13: 本数 | E13: 材積 | F13: 本数 | G13: 材積
A14: 2
A15: 3
A16: 4
A17: 5
A18: 6
A19: 7 | F19: 1 | G19: 0.03086465089
A20: 8
A21: 9
A22: 10 | B22: 143 | C22: 10.98240131 | F22: 71 | G22: 3.45786909
A23: 11
A24: 12 | B24: 17 | C24: 1.670487357
A25: 13 | B25: 56 | C25: 5.774219855
A26: 14 | B26: 1 | C26: 0.1127211581
A27: 16 | D27: 44 | E27: 11.89956734
A28: 18 | D28: 34 | E28: 9.917759306
A29: 20 | B29: 73 | C29: 13.77931673 | D29: 78 | E29: 25.72125566
A30: 22 | D30: 59 | E30: 22.3146656
A31: 24
A32: 26 | B32: 30 | C32: 8.815210458
A33: 28 | B33: 94 | C33: 30.97642911
A34: 30 | B34: 96 | C34: 35.5595073
A35: 32 | B35: 96 | C35: 39.47690679
A36: 34 | B36: 97 | C36: 43.76978479
A37: 36 | B37: 98 | C37: 48.03628767
A38: 38 | B38: 101 | C38: 53.39242556
A39: 40 | B39: 161 | C39: 93.2419762
A40: 42 | B40: 176 | C40: 112.7302572
A41: 44 | B41: 143 | C41: 100.602568
A42: 46 | B42: 141 | C42: 107.0803856
A43: 48 | B43: 136 | C43: 111.1315284
A44: 50 | B44: 126 | C44: 110.5125774
A45: 52 | B45: 109 | C45: 102.4246495
A46: 54 | B46: 85 | C46: 85.40654219
A47: 56 | B47: 56 | C47: 60.04729395
A48: 58 | B48: 29 | C48: 33.10509683
A49: 60 | B49: 12 | C49: 14.69685019
A50: 62
A51: 64
A52: 66
A53: 68
A54: 70
A55: 72
A56: 74
A57: 76
A58: 78
A59: 80
A60: 82
A61: 84
A62: 86
A63: 88
A64: 90
A65: 92
A66: 94
A67: 96
A68: 98
A69: 100
B70: =SUM(B14:B69) -> 2076 | C70: 1223.325423 | D70: 215 | E70: 69.85324791 | F70: 72 | G70: 3.488733741
A97: 胸高直径 | B97: 62.59671567 | C97: cm
A98: 平均樹高 | B98: 38.01648393 | C98: m
A100: 直径階d | B100: 本数 | C100: 樹高 | D100: 単木材積 | E100: 材積計
A101: 2 | B101: 0 | C101: =ChokkeikaiJukou(A101,$B$97,$B$98,$D$1) -> 2.568422775 | D101: =TanbokuZaiseki(A101,C101) -> 0.0006049901891 | E101: =D101*B101 -> 0
A102: 4 | B102: 0 | C102: 4.41808966 | D102: 0.003588539395 | E102: 0
A103: 6 | B103: 0 | C103: 6.067824051 | D103: 0.01016699982 | E103: 0
A104: 8 | B104: 0 | C104: 7.599806556 | D104: 0.02128565921 | E104: 0
A105: 10 | B105: 0 | C105: 9.049789958 | D105: 0.03775652812 | E105: 0
A106: 12 | B106: 0 | C106: 10.43760823 | D106: 0.06361298305 | E106: 0
A107: 14 | B107: 0 | C107: 11.77577591 | D107: 0.09553567138 | E107: 0
A108: 16 | B108: 0 | C108: 13.07285821 | D108: 0.13588158 | E108: 0
A109: 18 | B109: 0 | C109: 14.33505771 | D109: 0.1854008698 | E109: 0
A110: 20 | B110: 0 | C110: 15.56705688 | D110: 0.2448103138 | E110: 0
A111: 22 | B111: 0 | C111: 16.77250555 | D111: 0.3147982964 | E111: 0
A112: 24 | B112: 0 | C112: 17.95432179 | D112: 0.3960286395 | E112: 0
A113: 26 | B113: 0 | C113: 19.11488736 | D113: 0.4891436122 | E113: 0
A114: 28 | B114: 0 | C114: 20.2561799 | D114: 0.5947663534 | E114: 0
A115: 30 | B115: 0 | C115: 21.37986538 | D115: 0.7135028564 | E115: 0
A116: 32 | B116: 0 | C116: 22.48736471 | D116: 0.8398234547 | E116: 0
A117: 34 | B117: 0 | C117: 23.57990284 | D117: 0.9858534612 | E117: 0
A118: 36 | B118: 0 | C118: 24.65854565 | D118: 1.146716242 | E118: 0
A119: 38 | B119: 0 | C119: 25.7242283 | D119: 1.322968431 | E119: 0
A120: 40 | B120: 0 | C120: 26.77777729 | D120: 1.51515576 | E120: 0
A121: 42 | B121: 0 | C121: 27.81992784 | D121: 1.695477812 | E121: 0
A122: 44 | B122: 0 | C122: 28.85133789 | D122: 1.899416796 | E122: 0
A123: 46 | B123: 0 | C123: 29.87259928 | D123: 2.117168069 | E123: 0
A124: 48 | B124: 0 | C124: 30.88424702 | D124: 2.349005483 | E124: 0
A125: 50 | B125: 1 | C125: 31.88676688 | D125: 2.595196313 | E125: 2.595196313
A126: 52 | B126: 3 | C126: 32.88060168 | D126: 2.856001683 | E126: 8.56800505
A127: 54 | B127: 7 | C127: 33.86615661 | D127: 3.131676944 | E127: 21.92173861
A128: 56 | B128: 15 | C128: 34.84380369 | D128: 3.422472018 | E128: 51.33708027
A129: 58 | B129: 27 | C129: 35.81388557 | D129: 3.728631706 | E129: 100.6730561
A130: 60 | B130: 41 | C130: 36.77671879 | D130: 4.050395976 | E130: 166.066235
A131: 62 | B131: 53 | C131: 37.73259657 | D131: 4.388000213 | E131: 232.5640113
A132: 64 | B132: 56 | C132: 38.68179121 | D132: 4.74167546 | E132: 265.5338258
A133: 66 | B133: 46 | C133: 39.62455618 | D133: 5.111648635 | E133: 235.1358372
A134: 68 | B134: 27 | C134: 40.56112799 | D134: 5.498142727 | E134: 148.4498536
A135: 70 | B135: 10 | C135: 41.49172777 | D135: 5.901376981 | E135: 59.01376981
A136: 72 | B136: 2 | C136: 42.41656265 | D136: 6.321567072 | E136: 12.64313414
A137: 74 | B137: 0 | C137: 43.33582707 | D137: 6.758925257 | E137: 0
A138: 76 | B138: 0 | C138: 44.24970381 | D138: 7.213660526 | E138: 0
A139: 78 | B139: 0 | C139: 45.15836504 | D139: 7.685978738 | E139: 0
A140: 80 | B140: 0 | C140: 46.06197316 | D140: 8.176082746 | E140: 0
A141: 82 | B141: 0 | C141: 46.96068158 | D141: 8.684172521 | E141: 0
A142: 84 | B142: 0 | C142: 47.85463544 | D142: 9.210445258 | E142: 0
A143: 86 | B143: 0 | C143: 48.74397222 | D143: 9.755095485 | E143: 0
A144: 88 | B144: 0 | C144: 49.62882234 | D144: 10.31831516 | E144: 0
A145: 90 | B145: 0 | C145: 50.50930967 | D145: 10.90029377 | E145: 0
A146: 92 | B146: 0 | C146: 51.38555197 | D146: 11.50121839 | E146: 0
A147: 94 | B147: 0 | C147: 52.25766134 | D147: 12.12127382 | E147: 0
A148: 96 | B148: 0 | C148: 53.12574462 | D148: 12.76064261 | E148: 0
A149: 98 | B149: 0 | C149: 53.9899037 | D149: 13.41950514 | E149: 0
A150: 100 | B150: 0 | C150: 54.85023588 | D150: 14.09803974 | E150: 0
B151: =SUM(B101:B150) -> 288 | E151: =SUM(E101:E150) -> 1304.501743

Sheet 結果グラフ
A1: 結果グラフ

Sheet table
D1: C | E1: N | F1: NN
D2: 0 | E2: 0 | F2: 0
D3: 0.1 | E3: 0.002 | F3: 0
D4: 0.2 | E4: 0.063 | F4: 0.0083
D5: 0.3 | E5: 0.185 | F5: 0.108
D6: 0.4 | E6: 0.318 | F6: 0.3009
D7: 0.5 | E7: 0.447 | F7: 0.5
D8: 0.6 | E8: 0.569 | F8: 0.6646
D9: 0.7 | E9: 0.684 | F9: 0.79
D10: 0.8 | E10: 0.793 | F10: 0.8826
D11: 0.9 | E11: 0.898 | F11: 0.9504
D12: 1 | E12: 1 | F12: 1
D13: 1.1 | E13: 1.099 | F13: 1.0364
D14: 1.2 | E14: 1.195 | F14: 1.0631
D15: 1.3 | E15: 1.289 | F15: 1.0827
D16: 1.4 | E16: 1.382 | F16: 1.0972
D17: 1.5 | E17: 1.473 | F17: 1.1077
D18: 1.6 | E18: 1.563 | F18: 1.1154
D19: 1.7 | E19: 1.652 | F19: 1.1208
D20: 1.8 | E20: 1.739 | F20: 1.1245
D21: 1.9 | E21: 1.827 | F21: 1.1266
D22: 2 | E22: 1.913 | F22: 1.1284
D23: 2.1 | E23: 1.999 | F23: 1.1291
D24: 2.2 | E24: 2.084 | F24: 1.1291
D25: 2.3 | E25: 2.169 | F25: 1.1288
D26: 2.4 | E26: 2.253 | F26: 1.1281
D27: 2.5 | E27: 2.337 | F27: 1.1271
D28: 2.6 | E28: 2.421 | F28: 1.1259
D29: 2.7 | E29: 2.504 | F29: 1.1245
D30: 2.8 | E30: 2.587 | F30: 1.123
D31: 2.9 | E31: 2.669 | F31: 1.1215
D32: 3 | E32: 2.751 | F32: 1.1198
D33: 3.1 | E33: 2.834 | F33: 1.1182
D34: 3.2 | E34: 2.915 | F34: 1.1165
D35: 3.3 | E35: 2.997 | F35: 1.1148
D36: 3.4 | E36: 3.079 | F36: 1.1131
D37: 3.5 | E37: 3.16 | F37: 1.1114
D38: 3.6 | E38: 3.241 | F38: 1.1097
D39: 3.7 | E39: 3.322 | F39: 1.1081
D40: 3.8 | E40: 3.403 | F40: 1.1065
D41: 3.9 | E41: 3.484 | F41: 1.1048
D42: 4 | E42: 3.564 | F42: 1.1033
D43: 4.1 | E43: 3.645 | F43: 1.1017
D44: 4.2 | E44: 3.725 | F44: 1.1002
D45: 4.3 | E45: 3.806 | F45: 1.0987
D46: 4.4 | E46: 3.886 | F46: 1.0972
D47: 4.5 | E47: 3.966 | F47: 1.0958
D48: 4.6 | E48: 4.046 | F48: 1.0944
D49: 4.7 | E49: 4.126 | F49: 1.093
D50: 4.8 | E50: 4.206 | F50: 1.0917
D51: 4.9 | E51: 4.286 | F51: 1.0904
D52: 5 | E52: 4.366 | F52: 1.0891
D53: 5.1 | E53: 4.446 | F53: 1.0879
D54: 5.2 | E54: 4.525 | F54: 1.0867
D55: 5.3 | E55: 4.605 | F55: 1.0855
D56: 5.4 | E56: 4.684 | F56: 1.0843
D57: 5.5 | E57: 4.764 | F57: 1.0832
D58: 5.6 | E58: 4.843 | F58: 1.0821
D59: 5.7 | E59: 4.923 | F59: 1.081
D60: 5.8 | E60: 5.002 | F60: 1.0799
D61: 5.9 | E61: 5.081 | F61: 1.0789
D62: 6 | E62: 5.161 | F62: 1.0779
D63: 6.1 | E63: 5.24 | F63: 1.0769
D64: 6.2 | E64: 5.319 | F64: 1.076
D65: 6.3 | E65: 5.398 | F65: 1.075
D66: 6.4 | E66: 5.477 | F66: 1.0741
D67: 6.5 | E67: 5.556 | F67: 1.0732
D68: 6.6 | E68: 5.636 | F68: 1.0732
D69: 6.7 | E69: 5.715 | F69: 1.0715
D70: 6.8 | E70: 5.794 | F70: 1.0706
D71: 6.9 | E71: 5.873 | F71: 1.0698
D72: 7 | E72: 5.952 | F72: 1.069
D73: 7.1 | E73: 6.03 | F73: 1.0682
D74: 7.2 | E74: 6.109 | F74: 1.0675
D75: 7.3 | E75: 6.188 | F75: 1.0667
D76: 7.4 | E76: 6.267 | F76: 1.066
D77: 7.5 | E77: 6.346 | F77: 1.0653
D78: 7.6 | E78: 6.425 | F78: 1.0645
D79: 7.7 | E79: 6.504 | F79: 1.0639
D80: 7.8 | E80: 6.582 | F80: 1.0632
D81: 7.9 | E81: 6.661 | F81: 1.0625
D82: 8 | E82: 6.74 | F82: 1.0619
D83: 8.1 | E83: 6.819 | F83: 1.0612
D84: 8.2 | E84: 6.897 | F84: 1.0606
D85: 8.3 | E85: 6.976 | F85: 1.06
D86: 8.4 | E86: 7.055 | F86: 1.0594
D87: 8.5 | E87: 7.133 | F87: 1.0588
D88: 8.6 | E88: 7.212 | F88: 1.0582
D89: 8.7 | E89: 7.291 | F89: 1.0576
D90: 8.8 | E90: 7.369 | F90: 1.0571
D91: 8.9 | E91: 7.448 | F91: 1.0565
D92: 9 | E92: 7.526 | F92: 1.056
D93: 9.1 | E93: 7.605 | F93: 1.0555
D94: 9.2 | E94: 7.684 | F94: 1.055
D95: 9.3 | E95: 7.762 | F95: 1.0545
D96: 9.4 | E96: 7.841 | F96: 1.054
D97: 9.5 | E97: 7.919 | F97: 1.0535
D98: 9.6 | E98: 7.998 | F98: 1.053
D99: 9.7 | E99: 8.076 | F99: 1.0525
D100: 9.8 | E100: 8.155 | F100: 1.052
D101: 9.9 | E101: 8.233 | F101: 1.0516
D102: 10 | E102: 8.312 | F102: 1.0511
D103: 10.1 | E103: 8.39 | F103: 1.0507
D104: 10.2 | E104: 8.469 | F104: 1.0503
D105: 10.3 | E105: 8.547 | F105: 1.0498
D106: 10.4 | E106: 8.626 | F106: 1.0494
D107: 10.5 | E107: 8.704 | F107: 1.049
D108: 10.6 | E108: 8.783 | F108: 1.0486
D109: 10.7 | E109: 8.861 | F109: 1.0482
D110: 10.8 | E110: 8.939 | F110: 1.0478
D111: 10.9 | E111: 9.018 | F111: 1.0474
D112: 11 | E112: 9.096 | F112: 1.047
D113: 11.1 | E113: 9.175 | F113: 1.0467
D114: 11.2 | E114: 9.253 | F114: 1.0463
D115: 11.3 | E115: 9.331 | F115: 1.0459
D116: 11.4 | E116: 9.41 | F116: 1.0456
D117: 11.5 | E117: 9.488 | F117: 1.0452
D118: 11.6 | E118: 9.566 | F118: 1.0449
D119: 11.7 | E119: 9.645 | F119: 1.0445
D120: 11.8 | E120: 9.723 | F120: 1.0442
D121: 11.9 | E121: 9.801 | F121: 1.0439
D122: 12 | E122: 9.88 | F122: 1.0435
D123: 12.1 | E123: 9.958 | F123: 1.0432
D124: 12.2 | E124: 10.036 | F124: 1.0429
D125: 12.3 | E125: 10.115 | F125: 1.0426
D126: 12.4 | E126: 10.193 | F126: 1.0423
D127: 12.5 | E127: 10.271 | F127: 1.042
D128: 12.6 | E128: 10.35 | F128: 1.0417
D129: 12.7 | E129: 10.428 | F129: 1.0414
D130: 12.8 | E130: 10.506 | F130: 1.0411
D131: 12.9 | E131: 10.585 | F131: 1.0408
D132: 13 | E132: 10.663 | F132: 1.0405
D133: 13.1 | E133: 10.741 | F133: 1.0402
D134: 13.2 | E134: 10.819 | F134: 1.04
D135: 13.3 | E135: 10.898 | F135: 1.0397
D136: 13.4 | E136: 10.976 | F136: 1.0394
D137: 13.5 | E137: 11.054 | F137: 1.0391
D138: 13.6 | E138: 11.132 | F138: 1.0389
D139: 13.7 | E139: 11.211 | F139: 1.0386
D140: 13.8 | E140: 11.289 | F140: 1.0384
D141: 13.9 | E141: 11.367 | F141: 1.0381
D142: 14 | E142: 11.445 | F142: 1.0379
D143: 14.1 | E143: 11.524 | F143: 1.0376
D144: 14.2 | E144: 11.602 | F144: 1.0374
D145: 14.3 | E145: 11.68 | F145: 1.0371
D146: 14.4 | E146: 11.758 | F146: 1.0369
D147: 14.5 | E147: 11.837 | F147: 1.0367
D148: 14.6 | E148: 11.915 | F148: 1.0364
D149: 14.7 | E149: 11.993 | F149: 1.0362
D150: 14.8 | E150: 12.071 | F150: 1.036
D151: 14.9 | E151: 12.149 | F151: 1.0358
D152: 15 | E152: 12.228 | F152: 1.0356
D153: 15.1 | E153: 12.306 | F153: 1.0353
D154: 15.2 | E154: 12.384 | F154: 1.0351
D155: 15.3 | E155: 12.462 | F155: 1.0349
D156: 15.4 | E156: 12.541 | F156: 1.0347
D157: 15.5 | E157: 12.619 | F157: 1.0345
D158: 15.6 | E158: 12.697 | F158: 1.0343
D159: 15.7 | E159: 12.775 | F159: 1.0341
D160: 15.8 | E160: 12.853 | F160: 1.0339
D161: 15.9 | E161: 12.931 | F161: 1.0337
D162: 16 | E162: 13.01 | F162: 1.0335
D163: 16.1 | E163: 13.088 | F163: 1.0333
D164: 16.2 | E164: 13.166 | F164: 1.0331
D165: 16.3 | E165: 13.244 | F165: 1.0329
D166: 16.4 | E166: 13.322 | F166: 1.0328
D167: 16.5 | E167: 13.401 | F167: 1.0326
D168: 16.6 | E168: 13.479 | F168: 1.0324
D169: 16.7 | E169: 13.557 | F169: 1.0322
D170: 16.8 | E170: 13.635 | F170: 1.032
D171: 16.9 | E171: 13.713 | F171: 1.0319
D172: 17 | E172: 13.791 | F172: 1.0317
D173: 17.1 | E173: 13.87 | F173: 1.0315
D174: 17.2 | E174: 13.948 | F174: 1.0313
D175: 17.3 | E175: 14.026 | F175: 1.0312
D176: 17.4 | E176: 14.104 | F176: 1.031
D177: 17.5 | E177: 14.182 | F177: 1.0308
D178: 17.6 | E178: 14.26 | F178: 1.0307
D179: 17.7 | E179: 14.338 | F179: 1.0305
D180: 17.8 | E180: 14.416 | F180: 1.0304
D181: 17.9 | E181: 14.495 | F181: 1.0302
D182: 18 | E182: 14.573 | F182: 1.03
D183: 18.1 | E183: 14.651 | F183: 1.0299
D184: 18.2 | E184: 14.729 | F184: 1.0297
D185: 18.3 | E185: 14.807 | F185: 1.0296
D186: 18.4 | E186: 14.885 | F186: 1.0294
D187: 18.5 | E187: 14.963 | F187: 1.0293
D188: 18.6 | E188: 15.042 | F188: 1.0291
D189: 18.7 | E189: 15.12 | F189: 1.029
D190: 18.8 | E190: 15.198 | F190: 1.0288
D191: 18.9 | E191: 15.276 | F191: 1.0287
D192: 19 | E192: 15.354 | F192: 1.0286
D193: 19.1 | E193: 15.432 | F193: 1.0284
D194: 19.2 | E194: 15.51 | F194: 1.0283
D195: 19.3 | E195: 15.588 | F195: 1.0281
D196: 19.4 | E196: 15.666 | F196: 1.028
D197: 19.5 | E197: 15.745 | F197: 1.0279
D198: 19.6 | E198: 15.823 | F198: 1.0277
D199: 19.7 | E199: 15.901 | F199: 1.0276
D200: 19.8 | E200: 15.979 | F200: 1.0275
... 1 more rows
